bitfinex-derivatives/quotes_BTCF0:USTF0_20241022
["timestamp","ask_amount","ask_price","bid_price","bid_amount"]
[1729631768915,0.10008,67493.0,67487.0,0.17826927]
[1729631769115,0.10008,67493.0,67492.0,0.074116]
[1729631769320,0.10008,67493.0,67492.0,0.16353763]
[1729631769521,0.10008,67495.0,67492.0,0.16341521]
[1729631769823,0.10008,67495.0,67494.0,0.074113]
[1729631772416,0.10008,67495.0,67494.0,0.13325031]
[1729631772616,0.10008,67495.0,67494.0,0.074113]
[1729631779728,0.07411,67497.0,67494.0,0.074113]
[1729631779935,0.09988,67496.0,67494.0,0.074113]
[1729631780631,0.173991,67496.0,67494.0,0.074113]
[1729631782028,0.09988,67495.0,67494.0,0.074113]
[1729631786442,0.173992,67495.0,67494.0,0.074113]
[1729631788343,0.074112,67495.0,67494.0,0.074113]
[1729631790635,0.09988,67496.0,67495.0,0.074112]
[1729631794347,0.173991,67496.0,67495.0,0.074112]
[1729631795852,0.2192164,67496.0,67495.0,0.074112]
[1729631796638,0.27175144,67496.0,67495.0,0.074112]
[1729631798754,0.19764044,67496.0,67486.0,0.3608]
[1729631798960,0.17187344,67495.0,67491.0,0.074116]
[1729631799142,0.09776044,67494.0,67491.0,0.074116]
[1729631800553,0.09776044,67494.0,67492.0,0.184116]
[1729631802252,0.09782355,67493.0,67492.0,0.184116]
[1729631802849,0.074113,67495.0,67492.0,0.2738747]
[1729631803062,0.074113,67495.0,67494.0,0.07415587]
[1729631803263,0.074113,67495.0,67494.0,0.16391457]
[1729631803758,0.074113,67495.0,67494.0,0.07415587]
[1729631804651,0.074113,67495.0,67494.0,0.16390407]
[1729631805760,0.074113,67495.0,67494.0,0.07415587]
[1729631810860,0.074113,67495.0,67492.0,0.184116]
[1729631811065,0.17193197,67495.0,67492.0,0.184116]
[1729631811260,0.09781897,67494.0,67492.0,0.184116]
[1729631811765,0.09782575,67493.0,67492.0,0.184116]
[1729631814959,0.04526776,67493.0,67492.0,0.184116]
[1729631815361,0.05254982,67493.0,67492.0,0.184116]
[1729631815565,0.09781758,67493.0,67492.0,0.184116]
[1729631816169,0.04526776,67493.0,67492.0,0.184116]
[1729631816366,0.04525851,67493.0,67492.0,0.184116]
[1729631817874,0.074113,67495.0,67493.0,0.074114]
[1729631818075,0.074113,67495.0,67494.0,0.08977168]
[1729631818769,0.074113,67495.0,67494.0,0.16388468]
[1729631820760,0.074113,67495.0,67494.0,0.16389487]
[1729631822160,0.46188,67497.0,67494.0,0.08978187]
[1729631822362,0.46052,67497.0,67495.0,0.16389387]
[1729631822584,0.534631,67497.0,67496.0,0.08978187]
[1729631824765,0.63240503,67497.0,67495.0,0.074112]
[1729631824977,0.09777403,67496.0,67495.0,0.074112]
[1729631828580,0.15752777,67496.0,67495.0,0.074112]
[1729631829191,0.09777403,67496.0,67495.0,0.074112]
[1729631830482,0.04524383,67496.0,67495.0,0.074112]
[1729631830781,0.02696188,67499.0,67498.0,0.074109]
[1729631830989,0.5084519,67505.0,67498.0,0.184109]
[1729631830990,0.09840733,67502.0,67498.0,0.184109]
[1729631831284,0.04553688,67501.0,67495.0,0.074112]
[1729631831479,0.3608,67505.0,67501.0,0.11]
[1729631831676,0.38758475,67505.0,67504.0,0.184103]
[1729631831872,0.48600686,67505.0,67504.0,0.184103]
[1729631832779,0.38758475,67505.0,67504.0,0.184103]
[1729631838390,0.38758475,67505.0,67504.0,0.22852923]
[1729631839681,0.38758475,67505.0,67504.0,0.184103]
[1729631839882,0.48259498,67505.0,67504.0,0.184103]
[1729631840190,0.43154966,67505.0,67504.0,0.184103]
[1729631843886,0.38758475,67505.0,67504.0,0.184103]
[1729631845105,0.02678475,67505.0,67504.0,0.184103]
[1729631845283,0.3608,67510.0,67509.0,0.074097]
[1729631845483,0.40340402,67510.0,67509.0,0.184097]
[1729631847194,0.04260402,67510.0,67509.0,0.184097]
[1729631847397,0.40340402,67510.0,67509.0,0.184097]
[1729631847998,0.3608,67510.0,67509.0,0.22851633]
[1729631850500,0.0582893,67511.0,67510.0,0.074096]
[1729631850692,0.4190893,67511.0,67510.0,0.074096]
[1729631854893,0.0582893,67511.0,67510.0,0.074096]
[1729631855098,0.4190893,67511.0,67510.0,0.11851533]
[1729631855900,0.4190893,67511.0,67510.0,0.074096]
[1729631856104,0.4190893,67511.0,67510.0,0.11851533]
[1729631858502,0.0582893,67511.0,67510.0,0.11851533]
[1729631858704,0.4190893,67511.0,67510.0,0.074096]
[1729631858906,0.4190893,67511.0,67510.0,0.11850848]
[1729631859094,0.4190893,67511.0,67510.0,0.074096]
[1729631863007,0.51127373,67511.0,67510.0,0.074096]
[1729631867500,0.4617466,67511.0,67510.0,0.074096]
[1729631869302,0.15053642,67511.0,67510.0,0.074096]
[1729631869505,0.51133642,67511.0,67510.0,0.074096]
[1729631869906,0.4190893,67511.0,67510.0,0.074096]
[1729631875003,0.0582893,67511.0,67510.0,0.074096]
[1729631877808,0.0582893,67511.0,67510.0,0.14827225]
[1729631878110,0.0582893,67511.0,67510.0,0.074096]
[1729631885019,0.2073433,67511.0,67510.0,0.074096]
[1729631885219,0.15076696,67511.0,67510.0,0.074096]
[1729631888314,0.20729786,67511.0,67510.0,0.074096]
[1729631888817,0.35551438,67511.0,67510.0,0.074096]
[1729631889016,0.20729786,67511.0,67510.0,0.074096]
[1729631890419,0.35551438,67511.0,67510.0,0.074096]
[1729631891816,0.20729786,67511.0,67510.0,0.074096]
[1729631892914,0.0582893,67511.0,67510.0,0.27510663]
[1729631893618,0.0582893,67511.0,67501.0,0.435665]
[1729631893619,0.074104,67503.0,67501.0,0.10447784]
[1729631893823,0.24156,67502.0,67494.0,0.10371784]
[1729631894031,0.205367,67501.0,67498.0,0.074108]
[1729631894318,0.205367,67501.0,67498.0,0.184108]
[1729631898223,0.205367,67501.0,67500.0,0.07403682]
[1729631899728,0.23160443,67501.0,67500.0,0.07403682]
[1729631899925,0.23160443,67501.0,67498.0,0.184108]
[1729631901229,0.23160443,67501.0,67499.0,0.074108]
[1729631905436,0.23160443,67501.0,67500.0,0.074107]
[1729631908533,0.23160443,67501.0,67500.0,0.16343842]
[1729631915135,0.23160443,67501.0,67500.0,0.074107]
[1729631923346,0.23160443,67501.0,67500.0,0.16356583]
[1729631930355,0.23160443,67501.0,67500.0,0.16357674]
[1729631937759,0.23160443,67501.0,67500.0,0.16354199]
[1729631938161,0.27728916,67501.0,67500.0,0.074107]
[1729631942763,0.27725448,67501.0,67500.0,0.074107]
[1729631945071,0.23160443,67501.0,67500.0,0.16356535]
[1729631947374,0.23160443,67501.0,67500.0,0.16356643]
[1729631951481,0.23160443,67501.0,67500.0,0.08945943]
[1729631951970,0.23160443,67501.0,67498.0,0.074109]
[1729631952171,0.23160443,67501.0,67499.0,0.08950276]
[1729631952374,0.23160443,67501.0,67500.0,0.08950276]
[1729631953083,0.27717587,67501.0,67496.0,0.07411]
[1729631953273,0.11,67498.0,67496.0,0.07411]
[1729631954587,0.11,67498.0,67497.0,0.07411]
[1729631954776,0.22968782,67498.0,67497.0,0.07411]
[1729631955278,0.32872782,67498.0,67497.0,0.07411]
[1729631956782,0.32872726,67498.0,67497.0,0.07411]
[1729631956984,0.283149,67498.0,67497.0,0.07411]
[1729631957169,0.32872842,67498.0,67497.0,0.07411]
[1729631960080,0.283149,67498.0,67497.0,0.2702534]
[1729631961378,0.283149,67498.0,67497.0,0.07411]
[1729631961578,0.283149,67498.0,67497.0,0.27025]
[1729631964675,0.173149,67498.0,67497.0,0.27025]
[1729631968188,0.173149,67498.0,67497.0,0.25257861]
[1729631975295,0.21874049,67498.0,67497.0,0.07411]
[1729631980290,0.2188062,67498.0,67497.0,0.07411]
[1729631983391,0.173149,67498.0,67497.0,0.25250605]
[1729631984196,0.173149,67498.0,67497.0,0.16351893]
[1729631984598,0.173149,67498.0,67497.0,0.25250605]
[1729631984991,0.173149,67498.0,67497.0,0.25248085]
[1729631985691,0.173149,67498.0,67497.0,0.16349373]
[1729631990406,0.2186797,67498.0,67497.0,0.07411]
[1729631990591,0.1196397,67498.0,67497.0,0.07411]
[1729631990792,0.2183197,67498.0,67497.0,0.07411]
[1729631994406,0.21833862,67498.0,67497.0,0.07411]
[1729631998216,0.172789,67498.0,67497.0,0.16364645]
[1729631999014,0.172789,67498.0,67497.0,0.16364649]
[1729632005419,0.172789,67498.0,67497.0,0.07411]
[1729632006432,0.21834035,67498.0,67497.0,0.07411]
[1729632013332,0.172789,67498.0,67497.0,0.16367509]
[1729632014140,0.172789,67498.0,67497.0,0.25266221]
[1729632016541,0.172789,67498.0,67497.0,0.16367509]
[1729632021143,0.172789,67498.0,67497.0,0.16366548]
[1729632025639,0.172789,67498.0,67497.0,0.25323523]
[1729632025839,0.172789,67498.0,67497.0,0.16367975]
[1729632028350,0.21828678,67498.0,67497.0,0.07411]
[1729632030551,0.21839896,67498.0,67497.0,0.07411]
[1729632034149,0.172789,67498.0,67497.0,0.07411]
[1729632035447,0.172789,67498.0,67497.0,0.16363319]
[1729632043463,0.172789,67498.0,67497.0,0.07411]
[1729632044351,0.21828456,67498.0,67497.0,0.07411]
[1729632044854,0.172789,67498.0,67497.0,0.07411]
[1729632046068,0.074109,67498.0,67497.0,0.07411]
[1729632046263,0.172629,67498.0,67497.0,0.07411]
[1729632050462,0.172629,67498.0,67497.0,0.16377144]
[1729632053063,0.172629,67498.0,67497.0,0.25275856]
[1729632053461,0.09852,67498.0,67497.0,0.25275856]
[1729632053667,0.13224343,67501.0,67500.0,0.074107]
[1729632053869,0.23060343,67501.0,67500.0,0.16376844]
[1729632058164,0.23060343,67501.0,67500.0,0.16388844]
[1729632059173,0.02623743,67501.0,67500.0,0.16388844]
[1729632059473,0.09836,67501.0,67500.0,0.16388844]
[1729632061279,0.184103,67504.0,67500.0,0.16388844]
[1729632061578,0.09836,67501.0,67500.0,0.074107]
[1729632061773,0.09836,67501.0,67500.0,0.163891]
[1729632061971,0.09836,67501.0,67500.0,0.16389106]
[1729632065474,0.14359018,67501.0,67500.0,0.074107]
[1729632072582,0.09836,67501.0,67500.0,0.16393304]
[1729632073591,0.074104,67503.0,67500.0,0.08982604]
[1729632073785,0.074104,67503.0,67498.0,0.08898712]
[1729632073786,0.09836,67502.0,67501.0,0.16393204]
[1729632075487,0.09836,67502.0,67501.0,0.16399125]
[1729632076484,0.1253178,67504.0,67503.0,0.074104]
[1729632076691,0.0269578,67504.0,67503.0,0.16398925]
[1729632076992,0.09836,67505.0,67504.0,0.074103]
[1729632077189,0.09836,67505.0,67504.0,0.16398825]
[1729632078281,0.10092963,67506.0,67504.0,0.16398825]
[1729632078486,0.19928963,67506.0,67504.0,0.16398825]
[1729632078692,0.14813717,67505.0,67504.0,0.074103]
[1729632091194,0.14813717,67505.0,67504.0,0.14820559]
[1729632091696,0.14813717,67505.0,67504.0,0.074103]
[1729632091894,0.14813717,67505.0,67504.0,0.14820559]
[1729632092101,0.14813717,67505.0,67504.0,0.23780161]
[1729632092301,0.14813717,67505.0,67504.0,0.074103]
[1729632094800,0.22223817,67505.0,67504.0,0.074103]
[1729632096496,0.26748181,67505.0,67504.0,0.074103]
[1729632101306,0.26748438,67505.0,67504.0,0.074103]
[1729632103411,0.22223817,67505.0,67504.0,0.16384639]
[1729632106001,0.22223817,67505.0,67504.0,0.16386659]
[1729632109004,0.14813717,67505.0,67504.0,0.16386659]
[1729632111509,0.19341016,67505.0,67504.0,0.074103]
[1729632118712,0.14813717,67505.0,67504.0,0.16381757]
[1729632120014,0.14813717,67505.0,67504.0,0.16383722]
[1729632126621,0.19348357,67505.0,67504.0,0.074103]
[1729632128017,0.19349657,67505.0,67504.0,0.074103]
[1729632133828,0.14813717,67505.0,67504.0,0.16376813]
[1729632138830,0.14813717,67505.0,67504.0,0.25269124]
[1729632142234,0.14813717,67505.0,67504.0,0.25287068]
[1729632142625,0.14813717,67505.0,67504.0,0.16302611]
[1729632143226,0.14813717,67505.0,67504.0,0.25285815]
[1729632145023,0.14813717,67505.0,67504.0,0.16302611]
[1729632145836,0.29627434,67505.0,67504.0,0.16302611]
[1729632146536,0.29627434,67505.0,67504.0,0.074103]
[1729632157149,0.29627434,67505.0,67504.0,0.16427836]
[1729632163048,0.29627434,67505.0,67504.0,0.074103]
[1729632163248,0.29627434,67505.0,67504.0,0.1642566]
[1729632165060,0.34108944,67505.0,67504.0,0.074103]
[1729632167956,0.34110307,67505.0,67504.0,0.074103]
[1729632172154,0.29627434,67505.0,67504.0,0.16424786]
[1729632172552,0.29627434,67505.0,67504.0,0.074103]
[1729632172857,0.29627434,67505.0,67504.0,0.16424696]
[1729632174362,0.29627434,67505.0,67504.0,0.25323353]
[1729632175459,0.29627434,67505.0,67504.0,0.16424696]
[1729632177354,0.29627434,67505.0,67504.0,0.16425333]
[1729632180068,0.3410959,67505.0,67504.0,0.074103]
[1729632181053,0.34107457,67505.0,67504.0,0.074103]
[1729632185367,0.29627434,67505.0,67504.0,0.074103]
[1729632187058,0.29627434,67505.0,67504.0,0.2532476]
[1729632189161,0.29627434,67505.0,67504.0,0.16425999]
[1729632189361,0.44441151,67505.0,67504.0,0.16425999]
[1729632190062,0.44441151,67505.0,67504.0,0.16452795]
[1729632191261,0.44441151,67505.0,67504.0,0.25351556]
[1729632191460,0.44441151,67505.0,67504.0,0.16452795]
[1729632194066,0.44441151,67505.0,67504.0,0.074103]
[1729632195772,0.44441151,67505.0,67500.0,0.074107]
[1729632195970,0.11,67501.0,67500.0,0.074107]
[1729632196371,0.0945,67502.0,67500.0,0.074107]
[1729632196877,0.168605,67502.0,67500.0,0.074107]
[1729632197869,0.168605,67502.0,67501.0,0.074106]
[1729632202169,0.168605,67502.0,67501.0,0.16436714]
[1729632203771,0.0945,67502.0,67501.0,0.16436714]
[1729632208679,0.0945,67502.0,67501.0,0.1643157]
[1729632213183,0.0945,67502.0,67501.0,0.2743157]
[1729632213382,0.0629,67502.0,67501.0,0.2743157]
[1729632216792,0.0629,67502.0,67501.0,0.1643157]
[1729632217193,0.0629,67502.0,67501.0,0.074106]
[1729632219301,0.10757786,67502.0,67501.0,0.074106]
[1729632224203,0.0629,67502.0,67501.0,0.16431201]
[1729632224609,0.0629,67502.0,67501.0,0.25329053]
[1729632225010,0.0629,67502.0,67501.0,0.16431201]
[1729632227509,0.0629,67502.0,67501.0,0.16434845]
[1729632227707,0.0629,67502.0,67501.0,0.25334032]
[1729632229801,0.0629,67502.0,67501.0,0.16434845]
[1729632238015,0.0629,67502.0,67501.0,0.25334032]
[1729632239209,0.1075922,67502.0,67501.0,0.074106]
[1729632240916,0.10757785,67502.0,67501.0,0.074106]
[1729632247222,0.0629,67502.0,67501.0,0.16439309]
[1729632254231,0.0629,67502.0,67501.0,0.074106]
[1729632255235,0.09736,67503.0,67502.0,0.074105]
[1729632257634,0.44577151,67505.0,67504.0,0.074103]
[1729632257837,0.58645571,67505.0,67504.0,0.074103]
[1729632258838,0.5864568,67505.0,67504.0,0.074103]
[1729632259923,0.65177151,67505.0,67504.0,0.074103]
[1729632260125,0.69645319,67505.0,67504.0,0.074103]
[1729632260527,0.77055419,67505.0,67504.0,0.074103]
[1729632261535,0.72587251,67505.0,67504.0,0.074103]
[1729632262338,0.72587251,67505.0,67504.0,0.1643982]
[1729632269339,0.72587251,67505.0,67504.0,0.074103]
[1729632269340,0.77056605,67505.0,67504.0,0.074103]
[1729632272749,0.77056404,67505.0,67504.0,0.074103]
[1729632273335,0.66056404,67505.0,67504.0,0.074103]
[1729632273534,0.66056742,67505.0,67504.0,0.074103]
[1729632273947,0.61587251,67505.0,67504.0,0.074103]
[1729632274147,0.66057748,67505.0,67504.0,0.074103]
[1729632277545,0.61587251,67505.0,67504.0,0.16438899]
[1729632279352,0.72587251,67505.0,67504.0,0.09028599]
[1729632279854,0.72587251,67505.0,67504.0,0.17927911]
[1729632282851,0.72587251,67505.0,67504.0,0.09028599]
[1729632283050,0.72587251,67505.0,67504.0,0.17927902]
[1729632283247,0.72587251,67505.0,67504.0,0.08899303]
[1729632283442,0.72587251,67505.0,67504.0,0.17928257]
[1729632284150,0.72587251,67505.0,67504.0,0.09028954]
[1729632284754,0.074103,67504.0,67502.0,0.074104]
[1729632284955,0.04470813,67503.0,67502.0,0.074104]
[1729632285353,0.04470813,67503.0,67497.0,0.04449663]
[1729632285557,0.04470813,67503.0,67491.0,0.04449663]
[1729632285558,0.11,67498.0,67491.0,0.04449663]
[1729632285860,0.11,67493.0,67491.0,0.11861363]
[1729632286151,0.184115,67493.0,67491.0,0.074117]
[1729632286753,0.074116,67492.0,67491.0,0.074117]
[1729632287153,0.11,67493.0,67486.0,0.05932884]
[1729632287359,0.11,67489.0,67482.0,0.10758189]
[1729632287655,0.184126,67483.0,67482.0,0.137226]
[1729632291758,0.21113692,67483.0,67482.0,0.137226]
[1729632292765,0.21113692,67483.0,67482.0,0.33641022]
[1729632294363,0.21113692,67483.0,67482.0,0.2280963]
[1729632294857,0.21113692,67483.0,67482.0,0.33651202]
[1729632295470,0.21113692,67483.0,67482.0,0.2280963]
[1729632295972,0.21113692,67483.0,67482.0,0.33648099]
[1729632296174,0.21113692,67483.0,67482.0,0.2280963]
[1729632296675,0.10113692,67483.0,67482.0,0.2280963]
[1729632296978,0.13701092,67483.0,67482.0,0.2280963]
[1729632297172,0.13701092,67483.0,67482.0,0.33642429]
[1729632298371,0.13701092,67483.0,67482.0,0.30422429]
[1729632299072,0.28519638,67483.0,67482.0,0.30422429]
[1729632299767,0.28519638,67483.0,67482.0,0.19590272]
[1729632300491,0.07413,67479.0,67478.0,0.00088]
[1729632300775,0.074145,67465.0,67464.0,0.074146]
[1729632300973,0.074145,67465.0,67460.0,0.10112539]
[1729632300974,0.07415,67461.0,67460.0,0.10112539]
[1729632301275,0.09712,67467.0,67466.0,0.074144]
[1729632301676,0.20712,67467.0,67466.0,0.074144]
[1729632305180,0.23414204,67467.0,67466.0,0.074144]
[1729632305678,0.23414204,67467.0,67466.0,0.13318763]
[1729632305980,0.20712,67467.0,67466.0,0.13318763]
[1729632306165,0.20712,67467.0,67466.0,0.074144]
[1729632309871,0.09712,67467.0,67466.0,0.074144]
[1729632310077,0.20712,67467.0,67466.0,0.074144]
[1729632311781,0.09712,67467.0,67466.0,0.074144]
[1729632311985,0.12438247,67469.0,67468.0,0.074142]
[1729632312282,0.09712,67469.0,67468.0,0.074142]
[1729632313983,0.09712,67470.0,67469.0,0.074141]
[1729632315585,0.09712,67470.0,67469.0,0.1645978]
[1729632318588,0.09712,67470.0,67469.0,0.1646552]
[1729632321382,0.10062245,67471.0,67470.0,0.07414]
[1729632321582,0.19774245,67471.0,67470.0,0.1646542]
[1729632322990,0.10062245,67471.0,67470.0,0.1646542]
[1729632323187,0.19774245,67471.0,67470.0,0.07414]
[1729632323392,0.19774245,67471.0,67470.0,0.16467331]
[1729632325394,0.19774245,67471.0,67470.0,0.25340627]
[1729632326391,0.19774245,67471.0,67470.0,0.16467331]
[1729632327398,0.19774245,67471.0,67470.0,0.27273295]
[1729632329898,0.19774245,67471.0,67470.0,0.16467331]
[1729632330598,0.19774245,67471.0,67470.0,0.23881751]
[1729632334290,0.19774245,67471.0,67470.0,0.16493347]
[1729632336799,0.19774245,67471.0,67470.0,0.27316734]
[1729632337300,0.19774245,67471.0,67470.0,0.27316997]
[1729632341505,0.19766245,67471.0,67470.0,0.27316997]
[1729632342102,0.19766245,67471.0,67470.0,0.07414]
[1729632342296,0.19766245,67471.0,67470.0,0.27330374]
[1729632344807,0.19766245,67471.0,67470.0,0.07414]
[1729632346106,0.19766245,67471.0,67470.0,0.13349848]
[1729632347200,0.30766245,67471.0,67470.0,0.05935848]
[1729632347505,0.074141,67469.0,67468.0,0.04452212]
[1729632347702,0.4708,67469.0,67467.0,0.04451179]
[1729632347902,0.135942,67468.0,67467.0,0.04451179]
[1729632348499,0.074143,67467.0,67466.0,0.04451179]
[1729632348706,0.184143,67467.0,67466.0,0.04451179]
[1729632349708,0.11,67467.0,67465.0,0.04451179]
[1729632349896,0.074144,67466.0,67465.0,0.04451179]
[1729632350303,0.074144,67466.0,67464.0,0.074146]
[1729632350610,0.074144,67466.0,67465.0,0.04448592]
[1729632351810,0.11,67467.0,67465.0,0.0912194]
[1729632352104,0.184143,67467.0,67466.0,0.0912194]
[1729632353505,0.184143,67467.0,67466.0,0.18016751]
[1729632355605,0.184143,67467.0,67466.0,0.0912194]
[1729632356207,0.184143,67467.0,67466.0,0.09118998]
[1729632357904,0.184143,67467.0,67466.0,0.19985925]
[1729632358312,0.184143,67467.0,67466.0,0.27400325]
[1729632358499,0.184143,67467.0,67466.0,0.16533398]
[1729632359019,0.184143,67467.0,67466.0,0.27401047]
[1729632359805,0.184143,67467.0,67466.0,0.13342725]
[1729632363610,0.11,67467.0,67466.0,0.13342725]
[1729632363916,0.11,67467.0,67466.0,0.074144]
[1729632366915,0.11,67467.0,67466.0,0.27361208]
[1729632368613,0.11,67467.0,67466.0,0.074144]
[1729632368817,0.11,67467.0,67466.0,0.27361973]
[1729632371617,0.20692,67467.0,67466.0,0.27361973]
[1729632373406,0.20692,67467.0,67466.0,0.27344698]
[1729632374817,0.20692,67467.0,67466.0,0.11863159]
[1729632375416,0.09692,67467.0,67466.0,0.0444919]
[1729632375623,0.09692,67467.0,67466.0,0.04449248]
[1729632376309,0.09692,67467.0,67466.0,0.11863648]
[1729632376514,0.09692,67467.0,67466.0,0.074144]
[1729632376709,0.13648245,67471.0,67464.0,0.05931679]
[1729632376921,0.09692,67470.0,67467.0,0.04449897]
[1729632377121,0.09692,67470.0,67469.0,0.074141]
[1729632378617,0.09692,67470.0,67468.0,0.074142]
[1729632378821,0.09692,67470.0,67469.0,0.11863997]
[1729632379420,0.20692,67470.0,67469.0,0.11863997]
[1729632381329,0.20692,67470.0,67469.0,0.074141]
[1729632381928,0.20692,67470.0,67469.0,0.2731825]
[1729632382725,0.20692,67470.0,67469.0,0.27317551]
[1729632389944,0.20692,67470.0,67469.0,0.164943]
[1729632392242,0.20692,67470.0,67469.0,0.16495319]
[1729632394552,0.20692,67470.0,67469.0,0.16496091]
[1729632397062,0.2508817,67470.0,67469.0,0.074141]
[1729632398564,0.20692,67470.0,67469.0,0.074141]
[1729632399569,0.2508804,67470.0,67469.0,0.074141]
[1729632399868,0.20692,67470.0,67469.0,0.074141]
[1729632405172,0.20692,67470.0,67469.0,0.16498648]
[1729632406472,0.20692,67470.0,67469.0,0.16496935]
[1729632406862,0.20692,67470.0,67469.0,0.25398853]
[1729632407265,0.20692,67470.0,67469.0,0.16496935]
[1729632407779,0.09692,67470.0,67469.0,0.16496935]
[1729632415881,0.09692,67470.0,67469.0,0.16502632]
[1729632416386,0.09692,67470.0,67469.0,0.1650441]
[1729632420083,0.09692,67470.0,67469.0,0.074141]
[1729632426985,0.09692,67470.0,67469.0,0.27336502]
[1729632427693,0.09692,67470.0,67469.0,0.27338432]
[1729632428691,0.09692,67470.0,67469.0,0.27339578]
[1729632435005,0.09692,67470.0,67469.0,0.074141]
[1729632442015,0.09692,67470.0,67469.0,0.27342657]
[1729632447317,0.09692,67470.0,67469.0,0.27342765]
[1729632450108,0.09692,67470.0,67469.0,0.074141]
[1729632451012,0.17106,67470.0,67469.0,0.074141]
[1729632451212,0.21492715,67470.0,67469.0,0.074141]
[1729632452014,0.17106,67470.0,67469.0,0.074141]
[1729632452221,0.21494066,67470.0,67469.0,0.074141]
[1729632452816,0.14080066,67470.0,67464.0,0.0750201]
[1729632453026,0.074142,67469.0,67464.0,0.0445201]
[1729632453217,0.074142,67469.0,67467.0,0.074143]
[1729632462433,0.074142,67469.0,67468.0,0.1994099]
[1729632465336,0.074142,67469.0,67467.0,0.11865475]
[1729632468233,0.170702,67469.0,67467.0,0.11865475]
[1729632468528,0.170702,67469.0,67467.0,0.074143]
[1729632469334,0.170702,67469.0,67467.0,0.11865475]
[1729632469526,0.170702,67469.0,67467.0,0.074143]
[1729632471230,0.170702,67469.0,67467.0,0.11865475]
[1729632472231,0.170702,67469.0,67468.0,0.09094237]
[1729632475434,0.170702,67469.0,67468.0,0.16508437]
[1729632480529,0.170702,67469.0,67468.0,0.16511329]
[1729632480935,0.170702,67469.0,67468.0,0.16511612]
[1729632481444,0.170582,67469.0,67468.0,0.16511612]
[1729632483738,0.170582,67469.0,67468.0,0.16509744]
[1729632487335,0.170582,67469.0,67468.0,0.074142]
[1729632490349,0.074142,67469.0,67468.0,0.074142]
[1729632491148,0.11797206,67469.0,67468.0,0.074142]
[1729632492949,0.074142,67469.0,67468.0,0.074142]
[1729632493150,0.11795939,67469.0,67468.0,0.074142]
[1729632495447,0.074142,67469.0,67468.0,0.27359735]
[1729632498357,0.074142,67469.0,67468.0,0.19945535]
[1729632502456,0.09644,67470.0,67465.0,0.11866461]
[1729632502758,0.074143,67468.0,67466.0,0.04451961]
[1729632502953,0.09644,67470.0,67466.0,0.04451961]
[1729632503159,0.074143,67467.0,67466.0,0.04451961]
[1729632506661,0.074143,67467.0,67466.0,0.11866361]
[1729632507352,0.074143,67467.0,67466.0,0.074144]
[1729632510460,0.074143,67467.0,67466.0,0.16515506]
[1729632517261,0.074143,67467.0,67466.0,0.27361639]
[1729632517461,0.074143,67467.0,67466.0,0.074144]
[1729632520672,0.074143,67467.0,67466.0,0.13350606]
[1729632524970,0.074143,67467.0,67466.0,0.074144]
[1729632526562,0.074143,67467.0,67466.0,0.16523346]
[1729632527773,0.074143,67467.0,67466.0,0.15623193]
[1729632535672,0.074143,67467.0,67466.0,0.26480134]
[1729632535875,0.074143,67467.0,67466.0,0.26484316]
[1729632540092,0.074143,67467.0,67466.0,0.15624839]
[1729632540581,0.074143,67467.0,67466.0,0.06514247]
[1729632547501,0.074143,67467.0,67466.0,0.15622688]
[1729632547798,0.074143,67467.0,67466.0,0.26481891]
[1729632548006,0.074143,67467.0,67466.0,0.15622688]
[1729632548604,0.074143,67467.0,67466.0,0.2648616]
[1729632549501,0.074143,67467.0,67466.0,0.26484551]
[1729632549692,0.074143,67467.0,67466.0,0.1562568]
[1729632552206,0.074143,67467.0,67466.0,0.26484119]
[1729632552606,0.074143,67467.0,67466.0,0.26482818]
[1729632552801,0.074143,67467.0,67466.0,0.1562568]
[1729632553307,0.074143,67467.0,67466.0,0.26484197]
[1729632554001,0.074143,67467.0,67466.0,0.15624785]
[1729632554197,0.074143,67467.0,67466.0,0.26488198]
[1729632555012,0.074143,67467.0,67466.0,0.15624785]
[1729632555413,0.074143,67467.0,67466.0,0.26483612]
[1729632555613,0.074143,67467.0,67466.0,0.12450487]
[1729632555814,0.074143,67467.0,67466.0,0.06514247]
[1729632556414,0.0962,67469.0,67465.0,0.0593624]
[1729632556606,0.0962,67469.0,67468.0,0.074142]
[1729632562710,0.0962,67469.0,67468.0,0.1652455]
[1729632566420,0.0962,67469.0,67468.0,0.2542904]
[1729632566823,0.0962,67469.0,67468.0,0.1652455]
[1729632570519,0.0962,67469.0,67468.0,0.25428314]
[1729632570724,0.0962,67469.0,67468.0,0.1652455]
[1729632577839,0.0962,67469.0,67468.0,0.074142]
[1729632585831,0.0962,67469.0,67468.0,0.27165893]
[1729632592851,0.0962,67469.0,67468.0,0.074142]
[1729632600860,0.0962,67469.0,67468.0,0.16415462]
[1729632607776,0.0962,67469.0,67468.0,0.074142]
[1729632614481,0.02648245,67471.0,67470.0,0.07414]
[1729632614682,0.09596,67471.0,67470.0,0.07414]
[1729632615979,0.09596,67471.0,67470.0,0.16382951]
[1729632616183,0.02674946,67473.0,67472.0,0.074138]
[1729632616380,0.09596,67473.0,67472.0,0.25829626]
[1729632616588,0.02696732,67478.0,67477.0,0.074132]
[1729632616783,0.09596,67478.0,67477.0,0.2582908]
[1729632616981,0.09596,67478.0,67477.0,0.3478594]
[1729632617279,0.09596,67478.0,67477.0,0.184132]
[1729632618986,0.3608,67480.0,67479.0,0.07413]
[1729632619178,0.45676,67480.0,67479.0,0.07413]
[1729632619581,0.56676,67480.0,67479.0,0.07413]
[1729632619779,0.59319844,67480.0,67479.0,0.07413]
[1729632621384,0.59319844,67480.0,67479.0,0.13341607]
[1729632622792,0.59319844,67480.0,67479.0,0.07413]
[1729632624298,0.23239844,67480.0,67479.0,0.07413]
[1729632627894,0.12239844,67480.0,67479.0,0.07413]
[1729632628296,0.23239844,67480.0,67479.0,0.07413]
[1729632629899,0.27801395,67480.0,67479.0,0.07413]
[1729632636201,0.27801281,67480.0,67479.0,0.07413]
[1729632637409,0.27785281,67480.0,67479.0,0.07413]
[1729632637905,0.23223844,67480.0,67479.0,0.07413]
[1729632646404,0.13643844,67480.0,67479.0,0.07413]
[1729632646607,0.23223844,67480.0,67479.0,0.07413]
[1729632650019,0.27787111,67480.0,67479.0,0.07413]
[1729632653016,0.23223844,67480.0,67479.0,0.07413]
[1729632660118,0.27790284,67480.0,67479.0,0.07413]